bitfinex/quotes_BTCUSD_20250726
["timestamp","ask_amount","ask_price","bid_price","bid_amount"]
[1753552385115,5.65266647,118170.0,118160.0,0.33663325]
[1753552385322,5.66959109,118170.0,118160.0,0.32817066]
[1753552386664,5.46979515,118170.0,118160.0,0.31970799]
[1753552386883,0.97320297,118170.0,118160.0,0.32817101]
[1753552387094,5.86525697,118170.0,118160.0,0.32817101]
[1753552387302,5.84925697,118170.0,118160.0,0.32817101]
[1753552387517,5.83037697,118170.0,118160.0,0.33663382]
[1753552390668,5.83037697,118170.0,118160.0,0.36123382]
[1753552391117,5.83037697,118170.0,118160.0,0.36969656]
[1753552391756,5.83037697,118170.0,118160.0,0.36123382]
[1753552393492,5.83037697,118170.0,118160.0,0.35277101]
[1753552393815,5.82191473,118170.0,118160.0,0.35277101]
[1753552394637,0.92986073,118170.0,118160.0,0.35277101]
[1753552395091,5.82191473,118170.0,118160.0,0.35277101]
[1753552395275,5.82191473,118170.0,118160.0,0.36123382]
[1753552395490,5.82191473,118170.0,118160.0,0.35277101]
[1753552397277,0.92986073,118170.0,118160.0,0.35277101]
[1753552397484,5.82191473,118170.0,118160.0,0.35277101]
[1753552399245,5.81345242,118170.0,118160.0,0.34430813]
[1753552399504,5.81345242,118170.0,118160.0,0.35277108]
[1753552400306,0.92139842,118170.0,118160.0,0.35277108]
[1753552400511,5.81345242,118170.0,118160.0,0.35277108]
[1753552402409,5.78919242,118170.0,118160.0,0.35277108]
[1753552403602,5.81337242,118170.0,118160.0,0.34430813]
[1753552404976,5.81337242,118170.0,118160.0,0.35277108]
[1753552405405,0.92131842,118170.0,118160.0,0.35277108]
[1753552405639,5.81337242,118170.0,118160.0,0.35277108]
[1753552406273,5.44432858,118170.0,118160.0,0.35277108]
[1753552406502,5.81337242,118170.0,118160.0,0.35277108]
[1753552407589,5.44432858,118170.0,118160.0,0.35277108]
[1753552407804,5.44432858,118170.0,118160.0,0.34430813]
[1753552408648,5.80491004,118170.0,118160.0,0.33584511]
[1753552409973,5.80491004,118170.0,118160.0,0.34430813]
[1753552411825,5.80491004,118170.0,118160.0,0.35277108]
[1753552412215,5.4358662,118170.0,118160.0,0.35277108]
[1753552412995,5.4358662,118170.0,118160.0,0.34430813]
[1753552413795,5.44432844,118170.0,118160.0,0.34430813]
[1753552413994,5.44432844,118170.0,118160.0,0.35277108]
[1753552415442,5.44432844,118170.0,118160.0,0.34430813]
[1753552416616,0.55227444,118170.0,118160.0,0.34430813]
[1753552416828,5.44432844,118170.0,118160.0,0.34430813]
[1753552417044,5.44432844,118170.0,118160.0,0.33584511]
[1753552417281,5.44432844,118170.0,118160.0,0.34430813]
[1753552419078,0.55227444,118170.0,118160.0,0.34430813]
[1753552419279,5.44432844,118170.0,118160.0,0.34430813]
[1753552419722,0.55227444,118170.0,118160.0,0.34430813]
[1753552419952,5.44432844,118170.0,118160.0,0.34430813]
[1753552421631,5.44432844,118170.0,118160.0,0.35277108]
[1753552421835,0.55227444,118170.0,118160.0,0.34430813]
[1753552422029,5.44432844,118170.0,118160.0,0.35277108]
[1753552422247,5.44432844,118170.0,118160.0,0.34430813]
[1753552424613,5.44432844,118170.0,118160.0,0.35277108]
[1753552425730,5.44432844,118170.0,118160.0,0.34430813]
[1753552425945,5.44432844,118170.0,118160.0,0.33584511]
[1753552426837,5.44432844,118170.0,118160.0,0.34430813]
[1753552427444,5.44432844,118170.0,118160.0,0.33584511]
[1753552428092,5.44432844,118170.0,118160.0,0.34430813]
[1753552428293,5.44432844,118170.0,118160.0,0.33584511]
[1753552428718,5.44432844,118170.0,118160.0,0.34430813]
[1753552429200,5.44432844,118170.0,118160.0,0.33584511]
[1753552429661,5.44432844,118170.0,118160.0,0.34430813]
[1753552430136,5.44432844,118170.0,118160.0,0.35277108]
[1753552430600,5.44432844,118170.0,118160.0,0.34430813]
[1753552431334,0.55227444,118170.0,118160.0,0.34430813]
[1753552431559,5.44432844,118170.0,118160.0,0.34430813]
[1753552434072,5.81337228,118170.0,118160.0,0.34430806]
[1753552434297,5.81337228,118170.0,118160.0,0.34430813]
[1753552435793,5.81337228,118170.0,118160.0,0.34430806]
[1753552436052,5.81337228,118170.0,118160.0,0.33584511]
[1753552436703,5.81337228,118170.0,118160.0,0.34430813]
[1753552436908,5.81337228,118170.0,118160.0,0.33584511]
[1753552437103,5.81337228,118170.0,118160.0,0.34430813]
[1753552437500,5.81337228,118170.0,118160.0,0.35277108]
[1753552438178,5.81337228,118170.0,118160.0,0.34430813]
[1753552442417,5.80497777,118170.0,118160.0,0.34430813]
[1753552443716,5.80497777,118170.0,118160.0,0.32738201]
[1753552443882,5.43593393,118170.0,118160.0,0.34430813]
[1753552444100,5.80497777,118170.0,118160.0,0.34430813]
[1753552445023,5.80497777,118170.0,118160.0,0.35277108]
[1753552445443,5.80497777,118170.0,118160.0,0.34430813]
[1753552446560,0.91292377,118170.0,118160.0,0.34430813]
[1753552446860,5.80497777,118170.0,118160.0,0.32738201]
[1753552447614,5.80497777,118170.0,118160.0,0.33584511]
[1753552448553,0.91292377,118170.0,118160.0,0.33584511]
[1753552448738,5.80497777,118170.0,118160.0,0.34430813]
[1753552449112,5.80497777,118170.0,118160.0,0.33584511]
[1753552450542,5.80497777,118170.0,118160.0,0.32738201]
[1753552451053,5.80497777,118170.0,118160.0,0.33584511]
[1753552451960,5.80497777,118170.0,118160.0,0.34430813]
[1753552452179,5.80497777,118170.0,118160.0,0.33584511]
[1753552452493,5.80497777,118170.0,118160.0,0.32738201]
[1753552453078,5.80497777,118170.0,118160.0,0.33584511]
[1753552453403,5.80497777,118170.0,118160.0,0.32738201]
[1753552454122,5.81328995,118170.0,118160.0,0.32738201]
[1753552455024,5.94128995,118170.0,118160.0,0.17466201]
[1753552455267,5.97600995,118170.0,118160.0,0.30266201]
[1753552456159,5.96754771,118170.0,118160.0,0.1334]
[1753552456377,5.96754771,118170.0,118160.0,0.30266201]
[1753552457102,5.96452771,118170.0,118160.0,0.30266201]
[1753552458257,5.94932771,118170.0,118160.0,0.30266201]
[1753552459958,5.94932771,118170.0,118160.0,0.31112511]
[1753552460626,5.94932771,118170.0,118160.0,0.30266201]
[1753552461531,5.94932771,118170.0,118160.0,0.31112511]
[1753552462017,5.94932771,118170.0,118160.0,0.30266201]
[1753552463229,1.05727371,118170.0,118160.0,0.31112511]
[1753552463398,1.05727371,118170.0,118160.0,0.30266201]
[1753552463614,5.94932771,118170.0,118160.0,0.31112511]
[1753552464054,5.94932771,118170.0,118160.0,0.19158813]
[1753552464268,5.94932771,118170.0,118160.0,0.30266201]
[1753552464495,5.94932771,118170.0,118160.0,0.1334]
[1753552466310,5.93282771,118170.0,118160.0,0.1334]
[1753552467620,5.96724771,118170.0,118160.0,0.1334]
[1753552468503,5.93282771,118170.0,118160.0,0.1334]
[1753552468733,5.93282771,118170.0,118160.0,0.31112511]
[1753552468941,5.93282771,118170.0,118160.0,0.30266201]
[1753552469630,5.93282771,118170.0,118160.0,0.31112511]
[1753552470070,5.94852771,118170.0,118160.0,0.31112511]
[1753552470479,5.94852771,118170.0,118160.0,0.30266201]
[1753552471130,5.94852771,118170.0,118160.0,0.31112511]
[1753552471511,5.94852771,118170.0,118160.0,0.30266201]
[1753552471715,5.94852771,118170.0,118160.0,0.31112511]
[1753552471916,5.56378387,118170.0,118160.0,0.31958806]
[1753552472171,5.93282771,118170.0,118160.0,0.32805094]
[1753552472351,5.93282771,118170.0,118160.0,0.35187094]
[1753552472795,5.93282771,118170.0,118160.0,0.36033375]
[1753552473015,5.90864771,118170.0,118160.0,0.36354375]
[1753552473202,5.90864771,118170.0,118160.0,0.35508094]
[1753552473374,5.90864771,118170.0,118160.0,0.34661806]
[1753552475325,5.90864771,118170.0,118160.0,0.33815511]
[1753552477770,5.93134771,118170.0,118160.0,0.33815511]
[1753552478834,5.93134771,118170.0,118160.0,0.34661806]
[1753552479338,1.03929371,118170.0,118160.0,0.34661813]
[1753552479570,5.93134771,118170.0,118160.0,0.34661813]
[1753552481118,5.56230387,118170.0,118160.0,0.35508108]
[1753552481374,5.56230387,118170.0,118160.0,0.36354396]
[1753552481620,5.93134771,118170.0,118160.0,0.36354396]
[1753552481893,5.93134771,118170.0,118160.0,0.35508108]
[1753552482357,5.93134771,118170.0,118160.0,0.36354396]
[1753552482596,5.93134771,118170.0,118160.0,0.35508108]
[1753552483061,5.90864771,118170.0,118160.0,0.35508108]
[1753552483293,5.90864771,118170.0,118160.0,0.36354396]
[1753552483527,5.90864771,118170.0,118160.0,0.35508108]
[1753552485257,5.90864771,118170.0,118160.0,0.34661813]
[1753552485486,5.90864771,118170.0,118160.0,0.35508108]
[1753552485738,5.90864771,118170.0,118160.0,0.34661813]
[1753552486237,5.90864771,118170.0,118160.0,0.35508101]
[1753552486488,5.90864771,118170.0,118160.0,0.35508108]
[1753552488430,5.90864771,118170.0,118160.0,0.36354396]
[1753552488775,5.90864771,118170.0,118160.0,0.35508108]
[1753552488914,1.01659371,118170.0,118160.0,0.35508108]
[1753552489141,5.90864771,118170.0,118160.0,0.35508108]
[1753552489764,5.90864771,118170.0,118160.0,0.36354396]
[1753552490233,5.25928015,118170.0,118160.0,0.37407626]
[1753552490443,5.26774232,118170.0,118160.0,0.76765751]
[1753552490656,5.2762047,118170.0,118160.0,0.40707634]
[1753552490865,5.26774232,118170.0,118160.0,0.40707634]
[1753552491038,5.26774232,118170.0,118160.0,0.39861367]
[1753552491286,5.27620463,118170.0,118160.0,0.40707634]
[1753552491476,5.27620463,118170.0,118160.0,0.39861339]
[1753552491686,5.26774232,118170.0,118160.0,0.4070757]
[1753552491837,5.26774232,118170.0,118160.0,0.39861311]
[1753552492442,5.26774232,118170.0,118160.0,0.4070757]
[1753552492752,5.25928008,118170.0,118160.0,0.39861311]
[1753552493018,5.25928008,118170.0,118160.0,0.77611954]
[1753552493019,0.34831218,118170.0,118160.0,0.77611954]
[1753552493242,0.34,118170.0,118160.0,0.77611954]
[1753552500289,0.34,118170.0,118160.0,0.4070757]
[1753552500510,0.34,118170.0,118160.0,0.77611954]
[1753552505113,0.35692369,118170.0,118160.0,0.4070757]
[1753552505339,0.35692369,118170.0,118160.0,0.77611954]
[1753552505556,0.35692369,118170.0,118160.0,0.86059684]
[1753552506287,0.35692362,118170.0,118160.0,0.86059684]
[1753552509519,0.34846174,118170.0,118160.0,0.86059684]
[1753552509755,0.35692362,118170.0,118160.0,0.86059684]
[1753552510894,0.35692362,118170.0,118160.0,0.77611954]
[1753552511301,0.35692355,118170.0,118160.0,0.77611954]
[1753552511514,0.34,118170.0,118160.0,0.77611954]
[1753552511938,0.34846174,118170.0,118160.0,0.77611954]
[1753552512145,0.34,118170.0,118160.0,0.77611954]
[1753552512732,0.03096102,118180.0,118170.0,0.22723397]
[1753552512733,4.892094,118180.0,118170.0,0.22723397]
[1753552512968,4.892094,118180.0,118170.0,0.72617781]
[1753552513190,5.232094,118180.0,118170.0,0.75272781]
[1753552514034,5.232094,118180.0,118170.0,0.75372781]
[1753552514538,5.232094,118180.0,118170.0,0.75472781]
[1753552514768,5.232094,118180.0,118170.0,0.83920511]
[1753552515652,5.232094,118180.0,118170.0,0.47016127]
[1753552515871,5.232094,118180.0,118170.0,0.83920511]
[1753552517304,0.34004,118180.0,118170.0,0.75472781]
[1753552519282,0.34004,118180.0,118170.0,0.38568397]
[1753552519485,0.34004,118180.0,118170.0,0.75472781]
[1753552529215,0.34004,118180.0,118170.0,0.38568397]
[1753552529415,0.34004,118180.0,118170.0,0.75472781]
[1753552529647,0.34004,118180.0,118170.0,0.83920511]
[1753552542241,0.34004,118180.0,118170.0,0.75472781]
[1753552542415,4e-05,118180.0,118170.0,0.75472781]
[1753552560192,4e-05,118180.0,118170.0,0.38568397]
[1753552560417,4e-05,118180.0,118170.0,0.75472781]
[1753552568881,4e-05,118180.0,118170.0,0.73842781]
[1753552569062,4e-05,118180.0,118170.0,0.72212781]
[1753552573085,4e-05,118180.0,118170.0,0.75534384]
[1753552574051,4e-05,118180.0,118170.0,0.72212781]
[1753552578239,4e-05,118180.0,118170.0,0.35308397]
[1753552581284,4e-05,118180.0,118170.0,0.35308397]
[1753552593358,4e-05,118180.0,118170.0,0.72212781]
[1753552594188,4e-05,118180.0,118170.0,0.35308397]
[1753552622404,0.50004,118180.0,118170.0,0.83830511]
[1753552622636,4e-05,118180.0,118170.0,0.92278241]
[1753552622859,5.392094,118180.0,118170.0,0.92278241]
[1753552623110,4e-05,118180.0,118170.0,0.92278241]
[1753552623342,0.50004,118180.0,118170.0,0.92278241]
[1753552623581,0.50004,118180.0,118170.0,0.92078241]
[1753552623790,0.50004,118180.0,118170.0,0.92678241]
[1753552625105,4e-05,118180.0,118170.0,0.92678241]
[1753552626587,4e-05,118180.0,118170.0,0.55773857]
[1753552626824,4e-05,118180.0,118170.0,0.47326127]
[1753552627049,4e-05,118180.0,118170.0,1.10780511]
[1753552631169,4e-05,118180.0,118170.0,0.73876127]
[1753552631432,4e-05,118180.0,118170.0,1.10780511]
[1753552642746,4e-05,118180.0,118170.0,0.73876127]
[1753552642970,4e-05,118180.0,118170.0,1.13643152]
[1753552655481,4e-05,118180.0,118170.0,0.76738768]
[1753552655761,4e-05,118180.0,118170.0,1.13643152]
[1753552666799,4e-05,118180.0,118170.0,1.12043152]
[1753552668771,4e-05,118180.0,118170.0,0.75138768]
[1753552669016,4e-05,118180.0,118170.0,1.12043152]
[1753552670931,4e-05,118180.0,118170.0,1.10473152]
[1753552678602,4e-05,118180.0,118170.0,0.83923152]
[1753552678827,4e-05,118180.0,118170.0,0.85473152]
[1753552679054,4e-05,118180.0,118170.0,0.87013152]
[1753552680393,4e-05,118180.0,118170.0,0.50108768]
[1753552680628,4e-05,118180.0,118170.0,0.83923152]
[1753552689053,4e-05,118180.0,118170.0,1.10473152]
[1753552694093,4e-05,118180.0,118170.0,0.73568768]
[1753552694337,4e-05,118180.0,118170.0,1.10473152]
[1753552698155,4e-05,118180.0,118170.0,0.73568768]
[1753552698368,4e-05,118180.0,118170.0,1.10473152]
[1753552707494,4e-05,118180.0,118170.0,0.73568768]
[1753552707696,4e-05,118180.0,118170.0,1.10473152]
[1753552708621,4e-05,118180.0,118170.0,0.83923152]
[1753552718694,4e-05,118180.0,118170.0,1.10473152]
[1753552719135,4e-05,118180.0,118170.0,0.73568768]
[1753552719342,4e-05,118180.0,118170.0,1.10473152]
[1753552731477,4e-05,118180.0,118170.0,0.97681152]
[1753552731703,4e-05,118180.0,118170.0,1.10445152]
[1753552732619,4e-05,118180.0,118170.0,0.73540768]
[1753552732838,4e-05,118180.0,118170.0,1.10445152]
[1753552733059,0.05672,118180.0,118170.0,0.67825127]
[1753552733296,0.05672,118180.0,118170.0,0.70218127]
[1753552733540,0.03312,118180.0,118170.0,0.70729127]
[1753552734926,0.01772,118180.0,118170.0,0.70729127]
[1753552735680,0.01772,118180.0,118170.0,0.71693252]
[1753552736459,0.01772,118180.0,118170.0,0.82047636]
[1753552738620,0.00202,118180.0,118170.0,0.45143252]
[1753552738891,4e-05,118180.0,118170.0,0.81083511]
[1753552746027,4e-05,118180.0,118170.0,0.44179127]
[1753552753348,4e-05,118180.0,118170.0,0.81083511]
[1753552754451,4e-05,118180.0,118170.0,0.44179127]
[1753552755324,0.50004,118180.0,118170.0,0.44179127]
[1753552755536,4e-05,118180.0,118170.0,0.81083511]
[1753552756577,4e-05,118180.0,118170.0,0.44179127]
[1753552764309,4e-05,118180.0,118170.0,0.81083511]
[1753552764605,4e-05,118180.0,118170.0,0.82750083]
[1753552769477,4e-05,118180.0,118170.0,0.45845699]
[1753552769696,4e-05,118180.0,118170.0,0.81083511]
[1753552769930,0.50004,118180.0,118170.0,0.81083511]
[1753552770160,4e-05,118180.0,118170.0,0.81083511]
[1753552771025,4e-05,118180.0,118170.0,0.44179127]
[1753552771220,4e-05,118180.0,118170.0,0.81083511]
[1753552775195,4e-05,118180.0,118170.0,0.87018881]
[1753552776874,4e-05,118180.0,118170.0,0.50114497]
[1753552776986,4e-05,118180.0,118170.0,0.87018881]
[1753552779126,4e-05,118180.0,118170.0,0.50114497]
[1753552779353,4e-05,118180.0,118170.0,0.44179127]
[1753552783891,0.50004,118180.0,118170.0,0.44179127]
[1753552784114,4e-05,118180.0,118170.0,0.44179127]
[1753552787199,4e-05,118180.0,118170.0,0.81083511]
[1753552788283,0.00850102,118180.0,118170.0,0.22121209]
[1753552788517,4.92683625,118180.0,118170.0,0.35727397]
[1753552788751,5.34381147,118180.0,118170.0,0.35727397]
[1753552788943,5.33535009,118180.0,118170.0,0.35430397]
[1753552789395,5.3438114,118180.0,118170.0,0.35430397]
[1753552790485,5.35227285,118180.0,118170.0,0.35430397]
[1753552790769,5.3438114,118180.0,118170.0,0.35430397]
[1753552791406,5.33535009,118180.0,118170.0,0.35430397]
[1753552791840,5.32688886,118180.0,118170.0,0.35430397]
[1753552792075,5.33535002,118180.0,118170.0,0.35430397]
[1753552792540,5.31955002,118180.0,118170.0,0.35430397]
[1753552793519,5.31108886,118180.0,118170.0,0.35430397]
[1753552793762,5.31955002,118180.0,118170.0,0.35430397]
[1753552794509,5.31954995,118180.0,118170.0,0.35430397]
[1753552796641,5.34331118,118180.0,118170.0,0.32823397]
[1753552796858,5.34331111,118180.0,118170.0,0.32823397]
[1753552797471,5.35177242,118180.0,118170.0,0.32823397]
[1753552797671,5.34331111,118180.0,118170.0,0.32823397]
[1753552799266,5.34629111,118180.0,118170.0,0.32823397]
[1753552799675,4.97724727,118180.0,118170.0,0.32823397]
[1753552800267,4.96580611,118180.0,118170.0,0.32823397]
[1753552800749,4.95734502,118180.0,118170.0,0.32823397]
[1753552801691,4.948884,118180.0,118170.0,0.32823397]
[1753552803127,4.933584,118180.0,118170.0,0.32891397]
[1753552803349,4.933584,118180.0,118170.0,0.35273397]
[1753552803986,4.94204509,118180.0,118170.0,0.35273397]
[1753552804734,4.933584,118180.0,118170.0,0.35273397]
[1753552806241,4.933584,118180.0,118170.0,0.35269397]
[1753552806470,4.933584,118180.0,118170.0,0.22445397]
[1753552806718,4.933584,118180.0,118170.0,0.35269397]
[1753552806942,4.917784,118180.0,118170.0,0.22445397]
[1753552807191,0.02573,118180.0,118170.0,0.35269397]
[1753552807417,4.894114,118180.0,118170.0,0.22766397]
[1753552807643,4.894114,118180.0,118170.0,0.35590397]
[1753552808099,4.90257502,118180.0,118170.0,0.35788397]
[1753552808368,4.894114,118180.0,118170.0,0.35788397]
[1753552809652,4.90257509,118180.0,118170.0,0.35788397]
[1753552809932,5.27161893,118180.0,118170.0,0.35788397]
[1753552810183,4.90257509,118180.0,118170.0,0.35788397]
[1753552811717,4.894114,118180.0,118170.0,0.35788397]
[1753552811972,4.90257502,118180.0,118170.0,0.35788397]
[1753552812707,4.894114,118180.0,118170.0,0.35788397]
[1753552813376,4.90257502,118180.0,118170.0,0.35788397]
[1753552814328,4.894114,118180.0,118170.0,0.35788397]
[1753552815264,4.90257502,118180.0,118170.0,0.35788397]
[1753552815706,4.894114,118180.0,118170.0,0.35788397]
[1753552817583,0.00206,118180.0,118170.0,0.35788397]
[1753552817826,4.894114,118180.0,118170.0,0.35788397]
[1753552824920,4.90257502,118180.0,118170.0,0.35788397]
[1753552826931,4.91103618,118180.0,118170.0,0.35788397]
[1753552827172,4.91103611,118180.0,118170.0,0.35788397]
[1753552827406,4.90257502,118180.0,118170.0,0.35788397]
[1753552827838,4.93522611,118180.0,118170.0,0.35788397]
[1753552828073,4.92676502,118180.0,118170.0,0.35788397]
[1753552828545,4.93522611,118180.0,118170.0,0.35788397]
[1753552828777,4.92676502,118180.0,118170.0,0.35788397]
[1753552829010,4.93522611,118180.0,118170.0,0.35788397]
[1753552829261,4.92676502,118180.0,118170.0,0.35788397]
[1753552830324,4.93522611,118180.0,118170.0,0.35788397]
[1753552832723,4.93522611,118180.0,118170.0,0.35467397]
[1753552833215,4.94368734,118180.0,118170.0,0.35467397]
[1753552834264,4.94368734,118180.0,118170.0,0.72371781]
[1753552834950,4.93522611,118180.0,118170.0,0.72371781]
[1753552836249,0.00206,118180.0,118170.0,1.21227895]
[1753552836520,0.50004,118180.0,118170.0,1.21227895]
[1753552836753,0.50004,118180.0,118170.0,0.47419127]
[1753552837028,0.50004,118180.0,118170.0,0.84323511]
[1753552837435,0.50004,118180.0,118170.0,1.21227895]
[1753552837662,0.50004,118180.0,118170.0,0.84323511]
[1753552837889,0.50004,118180.0,118170.0,0.55866857]
[1753552838117,0.50004,118180.0,118170.0,0.92771241]
[1753552842363,0.50004,118180.0,118170.0,0.47419127]
[1753552842590,4e-05,118180.0,118170.0,0.84323511]
[1753552847987,0.50004,118180.0,118170.0,0.84323511]
[1753552851894,0.50850102,118180.0,118170.0,0.71499511]
[1753552852128,4e-05,118180.0,118170.0,0.84427511]
[1753552852361,4e-05,118180.0,118170.0,0.92875241]
[1753552852560,0.50004,118180.0,118170.0,0.92875241]
[1753552852784,4e-05,118180.0,118170.0,0.92875241]
[1753552854333,4e-05,118180.0,118170.0,0.55970857]
[1753552854528,4e-05,118180.0,118170.0,0.92875241]
[1753552857061,0.00850102,118180.0,118170.0,0.92875241]
[1753552858248,4e-05,118180.0,118170.0,0.92875241]
[1753552858467,4e-05,118180.0,118170.0,0.92863241]
[1753552858931,0.00850102,118180.0,118170.0,0.91303241]
[1753552859837,0.02542342,118180.0,118170.0,0.91303241]
[1753552860495,0.02542342,118180.0,118170.0,0.89683241]
[1753552860941,0.03388487,118180.0,118170.0,0.89679241]
[1753552861162,0.02542342,118180.0,118170.0,0.89679241]
[1753552861879,0.02542334,118180.0,118170.0,0.52774857]
[1753552862143,0.02542334,118180.0,118170.0,0.81231511]
[1753552862630,0.03388472,118180.0,118170.0,0.81231511]
[1753552862840,0.03388465,118180.0,118170.0,0.81231511]
[1753552863788,4e-05,118180.0,118170.0,0.81231511]
[1753552864042,0.00850109,118180.0,118170.0,0.81231511]
[1753552865183,0.50850109,118180.0,118170.0,0.89679241]
[1753552865644,0.50850109,118180.0,118170.0,0.89675241]
[1753552866055,0.01696225,118180.0,118170.0,0.89675241]
[1753552867191,0.02542348,118180.0,118170.0,0.89675241]
[1753552867435,0.52542348,118180.0,118170.0,0.44323127]
[1753552867681,0.03388479,118180.0,118170.0,0.81227511]
[1753552867887,0.02542348,118180.0,118170.0,0.81227511]
[1753552868579,0.06829356,118180.0,118170.0,0.69871781]
[1753552868799,0.06829356,118180.0,118170.0,0.72198781]
[1753552869026,0.02740356,118180.0,118170.0,0.72721781]
[1753552869255,0.02740356,118180.0,118170.0,0.35817397]
[1753552869477,0.02542348,118180.0,118170.0,0.72721781]
[1753552869747,0.02542348,118180.0,118170.0,0.59817781]
[1753552869970,0.03388486,118180.0,118170.0,0.72721781]
[1753552870423,0.03388479,118180.0,118170.0,0.72721781]
[1753552871403,0.02542348,118180.0,118170.0,0.72721781]
[1753552872366,0.03388479,118180.0,118170.0,0.72721781]
[1753552873382,0.05754624,118180.0,118170.0,0.72721781]
[1753552873631,0.05953667,118180.0,118170.0,0.72721781]
[1753552874344,0.05953667,118180.0,118170.0,0.35817397]
[1753552876071,0.05107515,118180.0,118170.0,0.35817397]
[1753552876319,0.03587515,118180.0,118170.0,0.35817397]
[1753552876541,0.04433667,118180.0,118170.0,0.35817397]
[1753552876767,4.93639067,118180.0,118170.0,0.35817397]
[1753552877002,4.93639067,118180.0,118170.0,0.72721781]
[1753552877234,4.93639067,118180.0,118170.0,0.35817397]
[1753552877724,4.93639067,118180.0,118170.0,0.35809397]
[1753552878144,4.92792915,118180.0,118170.0,0.35809397]
[1753552878440,4.93639067,118180.0,118170.0,0.35809397]
[1753552880298,4.93639067,118180.0,118170.0,0.22913397]
[1753552880522,4.93639067,118180.0,118170.0,0.35805397]
[1753552881055,4.93639067,118180.0,118170.0,0.22913397]
[1753552881276,4.93639067,118180.0,118170.0,0.35805397]
[1753552883255,4.93639067,118180.0,118170.0,0.72709781]
[1753552883957,4.92792915,118180.0,118170.0,0.72709781]
[1753552884442,4.92792908,118180.0,118170.0,0.72709781]
[1753552884669,4.9194677,118180.0,118170.0,0.72709781]
[1753552885307,4.9194677,118180.0,118170.0,0.35805397]
[1753552885556,4.9194677,118180.0,118170.0,0.72709781]
[1753552885908,4.9194677,118180.0,118170.0,0.35805397]
[1753552886133,4.9194677,118180.0,118170.0,0.72709781]
[1753552886830,4.91100639,118180.0,118170.0,0.35805397]
[1753552887049,4.91100639,118180.0,118170.0,0.72701781]
[1753552887274,4.90254516,118180.0,118170.0,0.72701781]
[1753552887934,4.90254516,118180.0,118170.0,0.59817781]
[1753552888172,4.90254516,118180.0,118170.0,0.72697781]
[1753552888613,0.01049116,118180.0,118170.0,0.72697781]
[1753552888892,4.90254516,118180.0,118170.0,0.59817781]
[1753552889169,4.90254516,118180.0,118170.0,0.35793397]
[1753552889412,4.90254516,118180.0,118170.0,0.72697781]
[1753552889614,4.91100647,118180.0,118170.0,0.72697781]
[1753552890495,4.90254516,118180.0,118170.0,0.72697781]
[1753552890915,4.91100647,118180.0,118170.0,0.72697781]
[1753552891775,4.91100639,118180.0,118170.0,0.72697781]
[1753552893426,4.90254516,118180.0,118170.0,0.72697781]
[1753552893629,4.894084,118180.0,118170.0,0.72697781]
[1753552893835,0.51049116,118180.0,118170.0,0.72697781]
[1753552894068,0.01895225,118180.0,118170.0,0.76477786]
[1753552894280,0.00850102,118180.0,118170.0,0.76477786]
[1753552894476,0.02542349,118180.0,118170.0,0.72697781]
[1753552894711,0.01696218,118180.0,118170.0,0.72697781]
[1753552895373,0.02542349,118180.0,118170.0,0.72697781]
[1753552895916,0.01696218,118180.0,118170.0,0.72697781]
[1753552896358,0.02542341,118180.0,118170.0,0.72697781]
[1753552897273,0.01696218,118180.0,118170.0,0.72697781]
[1753552897712,0.01696218,118180.0,118170.0,0.59817781]
[1753552897908,0.01696218,118180.0,118170.0,0.72701781]
[1753552898862,0.00850102,118180.0,118170.0,0.72701781]
[1753552902515,0.00850102,118180.0,118170.0,0.35797397]
[1753552902749,0.00850102,118180.0,118170.0,0.72701781]
[1753552902963,4e-05,118180.0,118170.0,0.72701781]
[1753552903171,0.50004,118180.0,118170.0,0.72701781]
[1753552904137,0.00850116,118180.0,118170.0,0.72701781]
[1753552905743,4e-05,118180.0,118170.0,0.72701781]
[1753552905974,0.00850109,118180.0,118170.0,0.72701781]
[1753552908143,0.01696225,118180.0,118170.0,0.72701781]
[1753552908997,0.01696225,118180.0,118170.0,0.59817781]
[1753552909260,0.01696225,118180.0,118170.0,0.72693781]
[1753552909895,0.00850109,118180.0,118170.0,0.72693781]
[1753552914946,4e-05,118180.0,118170.0,0.72693781]
[1753552915165,0.50004,118180.0,118170.0,0.72693781]
[1753552915365,0.00850109,118180.0,118170.0,0.72693781]
[1753552917703,0.50004,118180.0,118170.0,0.72693781]
[1753552918117,0.50850102,118180.0,118170.0,0.72693781]
[1753552918337,4e-05,118180.0,118170.0,0.72693781]
[1753552918567,0.50004,118180.0,118170.0,0.72693781]
[1753552921452,0.50004,118180.0,118170.0,1.21195895]
[1753552921891,0.50004,118180.0,118170.0,1.29643625]
[1753552922157,4e-05,118180.0,118170.0,1.29643625]
[1753552923450,4e-05,118180.0,118170.0,1.29043625]
[1753552923666,4e-05,118180.0,118170.0,1.29543625]
[1753552923879,4e-05,118180.0,118170.0,1.29843625]
[1753552925629,4e-05,118180.0,118170.0,1.56393625]
[1753552944918,4e-05,118180.0,118170.0,1.19469241]
[1753552945626,4e-05,118180.0,118170.0,1.56373625]
[1753552946670,4e-05,118180.0,118170.0,0.82564857]
[1753552946914,4e-05,118180.0,118170.0,1.56373625]
[1753552949584,4e-05,118180.0,118170.0,1.56372625]
[1753552955075,4e-05,118180.0,118170.0,0.82563857]
[1753552955324,4e-05,118180.0,118170.0,1.56372625]
[1753552978183,4e-05,118180.0,118170.0,1.572268]
[1753552982027,4e-05,118180.0,118170.0,1.57014818]
[1753552984911,4e-05,118180.0,118170.0,1.56160643]
[1753552986490,4e-05,118180.0,118170.0,1.57005218]
[1753552997570,4e-05,118180.0,118170.0,1.55445218]
[1753553003072,4e-05,118180.0,118170.0,1.53855218]
[1753553003853,4e-05,118180.0,118170.0,0.8004645]
[1753553004075,4e-05,118180.0,118170.0,1.53855218]
[1753553005688,4e-05,118180.0,118170.0,1.53010643]
[1753553009855,4e-05,118180.0,118170.0,1.53860607]
[1753553011515,4e-05,118180.0,118170.0,1.16956223]
[1753553012145,4e-05,118180.0,118170.0,1.53860607]
[1753553013288,4e-05,118180.0,118170.0,1.16956223]
[1753553014168,4e-05,118180.0,118170.0,1.56890607]
[1753553024346,4e-05,118180.0,118170.0,1.90890607]
[1753553024594,4e-05,118180.0,118170.0,1.95890607]
[1753553025397,4e-05,118180.0,118170.0,1.95590607]
[1753553025624,4e-05,118180.0,118170.0,1.95090607]
[1753553025884,4e-05,118180.0,118170.0,1.95390607]
[1753553027039,4e-05,118180.0,118170.0,1.95490607]
[1753553027573,4e-05,118180.0,118170.0,1.94640643]
[1753553034178,4e-05,118180.0,118170.0,1.9549463]
[1753553043285,4e-05,118180.0,118170.0,1.21685862]
[1753553043524,4e-05,118180.0,118170.0,1.9549463]
[1753553055707,4e-05,118180.0,118170.0,2.0057363]
[1753553056036,4e-05,118180.0,118170.0,1.9549463]
[1753553069026,4e-05,118180.0,118170.0,1.21685862]
[1753553069260,4e-05,118180.0,118170.0,1.9549463]